fUSD/lending_fUSD_20251221
["ID","MTS","AMOUNT","RATE_DAILY","PERIOD"]
[399426829,1766342661055,500.0,9.877e-05,2]
[399426830,1766342661110,500.0,9.877e-05,2]
[399426831,1766342661165,500.0,9.877e-05,2]
[399426832,1766342661224,299.48740439,9.877e-05,2]
[399426833,1766342662085,500.0,0.000356,120]
[399426834,1766342663437,-241.58371912,9.878e-05,2]
[399426835,1766342667236,-165.64607745,9.878e-05,2]
[399426836,1766342672071,-594.47478772,9.878e-05,2]
[399426837,1766342673954,-360.15388085,9.878e-05,2]
[399426838,1766342676256,-185.42845754,9.878e-05,2]
[399426839,1766342679933,369.7166342,9.877e-05,2]
[399426841,1766342680541,-157.55058434,9.878e-05,2]
[399426844,1766342684693,-297.29561889,9.878e-05,2]
[399426845,1766342686962,-500.0,9.878e-05,2]
[399426846,1766342689832,-243.32495825,9.878e-05,2]
[399426847,1766342691283,-185.34531192,9.878e-05,2]
[399426848,1766342692699,213.51326549,9.877e-05,2]
[399426849,1766342692726,286.48673451,9.877e-05,2]
[399426850,1766342692767,500.0,9.877e-05,2]
[399426851,1766342692809,500.0,9.877e-05,2]
[399426852,1766342692858,500.0,9.877e-05,2]
[399426853,1766342692917,600.67308039,9.877e-05,2]
[399426854,1766342693634,-244.8310071,9.878e-05,2]
[399426855,1766342695585,-159.32937716,9.878e-05,2]
[399426856,1766342697644,-206.61309058,9.878e-05,2]
[399426857,1766342700557,-278.75097827,9.878e-05,2]
[399426858,1766342701212,300.0,9.877e-05,2]
[399426859,1766342701270,1200.0,9.877e-05,2]
[399426860,1766342701601,159.0,9.877e-05,2]
[399426861,1766342701811,150.0,9.877e-05,2]
[399426862,1766342701963,300.0,9.877e-05,2]
[399426864,1766342703266,187.0,9.877e-05,2]
[399426866,1766342705261,478.42647084,9.877e-05,2]
[399426867,1766342705321,404.16038426,9.877e-05,2]
[399426868,1766342705440,-240.93808068,9.878e-05,2]
[399426871,1766342709122,-224.02792052,9.878e-05,2]
[399426872,1766342712487,-277.12114495,9.878e-05,2]
[399426873,1766342715601,500.0,9.877e-05,2]
[399426874,1766342715658,619.06595112,9.877e-05,2]
[399426875,1766342716129,500.0,9.877e-05,2]
[399426876,1766342718776,-196.49603332,9.878e-05,2]
[399426877,1766342720307,-317.42602732,9.878e-05,2]
[399426878,1766342724510,-485.47506263,9.878e-05,2]
[399426879,1766342726784,-225.1284924,9.878e-05,2]
[399426880,1766342727120,1032.78652338,0.00035616,30]
[399426881,1766342729651,-335.56050647,9.878e-05,2]
[399426882,1766342730248,500.0,9.877e-05,2]
[399426883,1766342730302,500.0,9.877e-05,2]
[399426884,1766342730356,262.84828377,9.877e-05,2]
[399426885,1766342731333,-219.41857349,9.878e-05,2]
[399426886,1766342734424,-176.67626731,9.878e-05,2]
[399426887,1766342736786,-268.79239397,9.878e-05,2]
[399426888,1766342738765,-358.17020187,9.878e-05,2]
[399426889,1766342741642,-162.8662351,9.878e-05,2]
[399426890,1766342743251,-306.05383363,9.878e-05,2]
[399426891,1766342744411,477.59780122,9.877e-05,2]
[399426892,1766342746438,344.32187511,9.877e-05,2]
[399426893,1766342746637,-271.26330673,9.878e-05,2]
[399426894,1766342749782,-242.39910715,9.878e-05,2]
[399426895,1766342751835,-289.45372834,9.878e-05,2]
[399426896,1766342753860,-244.21326873,9.878e-05,2]
[399426897,1766342756019,-233.28425376,9.878e-05,2]
[399426898,1766342757507,500.0,9.877e-05,2]
[399426899,1766342757578,230.42941878,9.877e-05,2]
[399426900,1766342757610,269.57058122,9.877e-05,2]
[399426901,1766342757662,500.0,9.877e-05,2]
[399426902,1766342757709,636.83038844,9.877e-05,2]
[399426903,1766342760922,-237.00163666,9.878e-05,2]
[399426904,1766342761778,300.0,9.877e-05,2]
[399426909,1766342763857,-212.94338836,9.878e-05,2]
[399426910,1766342765853,-250.54999566,9.878e-05,2]
[399426911,1766342767253,-213.27228091,9.878e-05,2]
[399426912,1766342768865,-374.87939607,9.878e-05,2]
[399426913,1766342769653,266.68255012,9.877e-05,2]
[399426914,1766342770060,470.28589042,9.877e-05,2]
[399426915,1766342771366,-488.79830232,9.878e-05,2]
[399426916,1766342775281,-296.04520421,9.878e-05,2]
[399426917,1766342777162,1001.6953744,9.878e-05,2]
[399426918,1766342779272,500.0,9.778e-05,2]
[399426919,1766342780866,-285.80535997,9.878e-05,2]
[399426921,1766342786445,500.0,9.877e-05,2]
[399426922,1766342786483,-244.57579678,9.878e-05,2]
[399426923,1766342786533,500.0,9.877e-05,2]
[399426924,1766342786587,644.47287552,9.877e-05,2]
[399426925,1766342787941,-179.20601753,9.878e-05,2]
[399426926,1766342790762,-185.67015371,9.878e-05,2]
[399426927,1766342792710,-269.84131279,9.878e-05,2]
[399426928,1766342795930,-250.0,9.878e-05,2]
[399426929,1766342798146,-250.8859705,9.878e-05,2]
[399426930,1766342800159,-151.45860541,9.878e-05,2]
[399426931,1766342801684,-232.351131,9.878e-05,2]
[399426932,1766342804358,-333.54423251,9.878e-05,2]
[399426933,1766342806416,-184.80488258,9.878e-05,2]
[399426934,1766342809070,-350.2803979,9.878e-05,2]
[399426935,1766342812385,-178.59647719,9.878e-05,2]
[399426936,1766342812950,1167.951255,9.828e-05,2]
[399426937,1766342814526,-250.73208057,9.878e-05,2]
[399426938,1766342814579,500.0,9.877e-05,2]
[399426939,1766342814622,500.0,9.877e-05,2]
[399426940,1766342814666,279.27310896,9.877e-05,2]
[399426941,1766342815481,-450.32826935,9.878e-05,2]
[399426942,1766342817679,-206.21057752,9.878e-05,2]
[399426943,1766342819154,-270.48258669,9.878e-05,2]
[399426944,1766342821276,538.6234932,9.878e-05,2]
[399426945,1766342821355,300.0,9.877e-05,2]
[399426946,1766342822433,-375.7648119,9.878e-05,2]
[399426947,1766342824025,-210.97248252,9.878e-05,2]
[399426948,1766342826194,-455.91949302,9.878e-05,2]
[399426949,1766342828375,-180.50432612,9.878e-05,2]
[399426950,1766342829662,-226.32515273,9.878e-05,2]
[399426951,1766342831252,-353.76428519,9.878e-05,2]
[399426952,1766342833451,-184.66639574,9.878e-05,2]
[399426953,1766342834981,-319.37539144,9.878e-05,2]
[399426954,1766342837541,-469.29937762,9.878e-05,2]
[399426955,1766342839067,-224.60969678,9.878e-05,2]
[399426957,1766342842447,-259.21871866,9.878e-05,2]
[399426960,1766342845113,-358.88880504,9.878e-05,2]
[399426961,1766342845595,500.0,9.877e-05,2]
[399426962,1766342845680,279.27310896,9.877e-05,2]
[399426963,1766342845752,345.35137376,9.877e-05,2]
[399426964,1766342845780,154.64862624,9.877e-05,2]
[399426965,1766342848392,-626.34476566,9.878e-05,2]
[399426966,1766342851041,-153.26659179,9.878e-05,2]
[399426967,1766342852428,221.60406798,9.877e-05,2]
[399426968,1766342854644,-231.28766511,9.878e-05,2]
[399426969,1766342856685,-175.919,9.878e-05,2]
[399426970,1766342858786,-218.52818786,9.878e-05,2]
[399426971,1766342860891,-186.20593699,9.878e-05,2]
[399426972,1766342864123,-353.7132364,9.878e-05,2]
[399426973,1766342866359,-208.38635721,9.878e-05,2]
[399426974,1766342869402,-268.49412869,9.878e-05,2]
[399426975,1766342871981,-300.59799323,9.878e-05,2]
[399426976,1766342875740,-189.68687234,9.878e-05,2]
[399426977,1766342876896,500.0,9.877e-05,2]
[399426978,1766342876943,279.27310896,9.877e-05,2]
[399426979,1766342877120,500.0,9.877e-05,2]
[399426980,1766342878851,-300.0,9.878e-05,2]
[399426981,1766342879951,-240.55380638,9.878e-05,2]
[399426982,1766342882165,150.0,9.877e-05,2]
[399426983,1766342882633,-527.78318328,9.878e-05,2]
[399426984,1766342885277,-377.53774235,9.878e-05,2]
[399426985,1766342885319,1200.0,9.877e-05,2]
[399426986,1766342887205,-239.92416635,9.878e-05,2]
[399426987,1766342889654,-233.93357187,9.878e-05,2]
[399426988,1766342891314,-265.28444842,9.878e-05,2]
[399426989,1766342893935,-385.8375704,9.878e-05,2]
[399426990,1766342896302,-257.63416136,9.878e-05,2]
[399426991,1766342898246,-175.35137943,9.878e-05,2]
[399426992,1766342900254,-162.00626023,9.878e-05,2]
[399426993,1766342902888,-206.35231761,9.878e-05,2]
[399426994,1766342904884,-168.44333521,9.878e-05,2]
[399426995,1766342907466,-155.82210314,9.878e-05,2]
[399426996,1766342908775,500.0,9.877e-05,2]
[399426997,1766342908829,500.0,9.877e-05,2]
[399426998,1766342908899,447.71644417,9.877e-05,2]
[399426999,1766342911115,-195.0,9.878e-05,2]
[399427000,1766342912594,-213.65394262,9.878e-05,2]
[399427001,1766342914731,-265.61679532,9.878e-05,2]
[399427002,1766342916830,195.23433505,9.877e-05,2]
[399427003,1766342917763,-247.54998134,9.878e-05,2]
[399427004,1766342921943,-392.85968118,9.878e-05,2]
[399427005,1766342923771,-300.0,9.878e-05,2]
[399427008,1766342925301,-181.01732946,9.878e-05,2]
[399427010,1766342926584,155.58776809,9.877e-05,2]
[399427011,1766342928752,-152.83,9.878e-05,2]
[399427012,1766342930940,-284.45414948,9.878e-05,2]
[399427013,1766342935037,181.01732946,9.877e-05,2]
[399427014,1766342935504,-182.90159858,9.878e-05,2]
[399427015,1766342937668,-238.0,9.878e-05,2]
[399427016,1766342938448,500.0,9.877e-05,2]
[399427017,1766342938505,500.0,9.877e-05,2]
[399427018,1766342938554,500.0,9.877e-05,2]
[399427019,1766342939009,321.65878999,9.877e-05,2]
[399427020,1766342941191,1000.0,0.00035615,30]
[399427021,1766342941511,1000.0,0.00035615,30]
[399427022,1766342941604,300.0,9.877e-05,2]
[399427023,1766342942089,1000.0,0.00034759,30]
[399427024,1766342942120,-215.25675969,9.878e-05,2]
[399427025,1766342944773,-153.24473554,9.878e-05,2]
[399427026,1766342947377,-187.24535868,9.878e-05,2]
[399427027,1766342949300,-163.11636975,9.878e-05,2]
[399427028,1766342952278,-250.0,9.878e-05,2]
[399427029,1766342952301,-22.15512232,9.879e-05,2]
[399427030,1766342952686,2893.26953006,9.778e-05,2]
[399427031,1766342952714,10000.01,9.778e-05,2]
[399427032,1766342952742,10000.01,9.778e-05,2]
[399427033,1766342952769,10000.01,9.778e-05,2]
[399427036,1766342959648,-283.88811799,9.778e-05,2]
[399427037,1766342962201,-267.33747421,9.778e-05,2]
[399427038,1766342964948,-437.73537449,9.778e-05,2]
[399427039,1766342969158,-5403.8719,9.778e-05,2]
[399427040,1766342969189,-195.0,9.778e-05,2]
[399427041,1766342970680,-211.3932106,9.778e-05,2]
[399427043,1766342973474,-300.0,9.778e-05,2]
[399427045,1766342976307,-257.52783332,9.778e-05,2]
[399427047,1766342978528,-214.42464372,9.778e-05,2]
[399427048,1766342981417,-420.15232677,9.778e-05,2]
[399427050,1766342982969,-804.91463441,9.778e-05,2]
[399427052,1766342986972,-241.0,9.778e-05,2]
[399427053,1766342989050,-339.97032989,9.778e-05,2]
[399427056,1766342992250,-182.04815764,9.778e-05,2]
[399427058,1766342996145,-182.8505077,9.778e-05,2]
[399427060,1766342999086,-183.75773148,9.778e-05,2]
[399427062,1766343000234,-387.54007369,9.778e-05,2]
[399427063,1766343001185,1200.0,9.777e-05,2]
[399427064,1766343001503,300.0,9.777e-05,2]
[399427067,1766343003369,230.0,9.778e-05,2]
[399427068,1766343004456,-200.816033,9.778e-05,2]
[399427073,1766343006685,-267.9594923,9.778e-05,2]
[399427075,1766343007931,-251.95836875,9.778e-05,2]
[399427077,1766343009900,-217.96492571,9.778e-05,2]
[399427080,1766343012412,-153.54788473,9.778e-05,2]
[399427081,1766343013880,-255.23554207,9.778e-05,2]
[399427084,1766343016556,-263.25217571,9.778e-05,2]
[399427085,1766343019190,-403.50505732,9.778e-05,2]
[399427086,1766343021361,-307.94665852,9.778e-05,2]
[399427087,1766343022869,-258.0129793,9.778e-05,2]
[399427089,1766343024817,151.0,9.775e-05,2]
[399427090,1766343025337,-241.9870207,9.778e-05,2]
[399427093,1766343029647,-197.21759256,9.778e-05,2]
[399427094,1766343031704,-430.40741708,9.778e-05,2]
[399427096,1766343032011,-328.0184482,9.778e-05,2]
[399427097,1766343032065,-1119.94014192,9.778e-05,2]
[399427098,1766343032077,-1472.73296337,9.778e-05,2]
[399427099,1766343032089,-9797.0,9.778e-05,2]
[399427100,1766343032119,-702.53762416,9.778e-05,2]
[399427101,1766343032174,-600.11131002,9.778e-05,2]
[399427102,1766343032185,-500.0,9.778e-05,2]
[399427103,1766343032229,-388.29480477,9.778e-05,2]
[399427104,1766343032240,-8108.35026846,9.778e-05,2]
[399427105,1766343032284,-23576.0,9.778e-05,2]
[399427107,1766343032297,-4400.0939247,9.778e-05,2]
[399427138,1766343034118,-159.50087562,9.778e-05,2]
[399427141,1766343035331,205.52057142,9.777e-05,2]
[399427142,1766343035374,500.0,9.777e-05,2]
[399427143,1766343035563,500.01090205,9.777e-05,2]
[399427144,1766343035738,342.14859116,9.777e-05,2]
[399427145,1766343035959,500.0,9.777e-05,2]
[399427146,1766343037660,500.0,9.777e-05,2]
[399427147,1766343037705,500.0,9.777e-05,2]
[399427148,1766343037758,500.0,9.777e-05,2]
[399427149,1766343037807,500.0,9.777e-05,2]
[399427150,1766343037853,500.0,9.777e-05,2]
[399427151,1766343037900,500.0,9.777e-05,2]
[399427153,1766343037948,500.0,9.777e-05,2]
[399427154,1766343037992,500.0,9.777e-05,2]
[399427155,1766343038459,500.0,9.777e-05,2]
[399427159,1766343038504,500.0,9.777e-05,2]
[399427165,1766343038552,500.0,9.777e-05,2]
[399427174,1766343038664,500.0,9.777e-05,2]
[399427175,1766343038742,71.32993537,9.777e-05,2]
[399427176,1766343038770,428.67006463,9.777e-05,2]
[399427177,1766343038838,500.0,9.777e-05,2]
[399427178,1766343038957,500.0,9.777e-05,2]
[399427179,1766343039006,-202278.91352036,9.778e-05,2]
[399427180,1766343039018,-699911.9831247,9.778e-05,2]
[399427181,1766343039029,-1514.8808,9.778e-05,2]
[399427182,1766343039038,-1129.0196,9.778e-05,2]
[399427183,1766343039047,-250.01,9.828e-05,2]
[399427184,1766343039057,-33472.80857768,9.879e-05,2]
[399427185,1766343039067,-1000.0,9.879e-05,2]
[399427186,1766343039077,-151.0,0.0001,2]
[399427187,1766343039087,-151.0,0.0001,2]
[399427188,1766343039096,-151.0,0.0001,2]
[399427189,1766343039106,-151.0,0.0001,2]
[399427190,1766343039116,-151.0,0.0001,2]
[399427191,1766343039126,-151.0,0.0001,2]
[399427192,1766343039136,-151.0,0.0001,2]
[399427193,1766343039146,-151.0,0.0001,2]
[399427194,1766343039156,-151.0,0.0001,2]
[399427195,1766343039165,-151.0,0.0001,2]
[399427196,1766343039176,-151.0,0.0001,2]
[399427197,1766343039187,-151.0,0.0001,2]
[399427198,1766343039196,-151.0,0.0001,2]
[399427199,1766343039207,-151.0,0.0001,2]
[399427200,1766343039217,-151.0,0.0001,2]
[399427201,1766343039227,-151.0,0.0001,2]
[399427202,1766343039236,-151.0,0.0001,2]
[399427203,1766343039246,-151.0,0.0001,2]
[399427204,1766343039256,-151.0,0.0001,2]
[399427205,1766343039265,-151.0,0.0001,2]
[399427206,1766343039275,-258.78126183,0.0001,2]
[399427207,1766343039286,-10000.01,0.00010732,2]
[399427208,1766343039296,-1680.0,0.00010755,2]
[399427209,1766343039306,-250.0,0.00010756,2]
[399427210,1766343039318,-255.0,0.00010865,2]
[399427211,1766343039328,-250.0,0.00010866,2]
[399427212,1766343039337,-771.3,0.00010868,2]
[399427213,1766343039347,-9999.99,0.00010868,2]
[399427214,1766343039357,-9999.99,0.00010868,2]
[399427215,1766343039367,-309.03,0.00010868,2]
[399427216,1766343039377,-32393.87,0.00010868,2]
[399427217,1766343039388,-9999.99,0.00010868,2]
[399427218,1766343039398,-9999.99,0.00010868,2]
[399427219,1766343039408,-9999.99,0.00010868,2]
[399427220,1766343039419,-4999.99,0.00010868,2]
[399427221,1766343039429,-150.99,0.00010868,2]
[399427222,1766343039438,-1201.98,0.00010868,2]
[399427223,1766343039448,-150.99,0.00010868,2]
[399427224,1766343039459,-9999.99,0.00010868,2]
[399427225,1766343039469,-273.37064364,0.000109,2]
[399427226,1766343039478,-273.3706436,0.000109,2]
[399427227,1766343039488,-150.0,0.00010959,2]
[399427228,1766343039497,-252.38447502,0.00011089,2]
[399427229,1766343039507,-38082.51200148,0.00011099,2]
[399427230,1766343039517,-38082.51200145,0.00011099,2]
[399427231,1766343039527,-1530.82,0.00011099,2]
[399427232,1766343039537,-299.99,0.00011099,2]
[399427233,1766343039546,-999.99,0.00011099,2]
[399427234,1766343039555,-9999.99,0.00011099,2]
[399427235,1766343039566,-25945.72934012,0.00011099,2]
[399427236,1766343039575,-25945.72934006,0.00011099,2]
[399427237,1766343039584,-1000.0,0.00011167,2]
[399427238,1766343039594,-150.0,0.00011286,2]
[399427239,1766343039603,-538.6234932,0.00011312,2]
[399427240,1766343039614,-5648.38,0.00011312,2]
[399427241,1766343039623,-25945.72934006,0.00011361,2]
[399427242,1766343039632,-38082.51200145,0.00011361,2]
[399427243,1766343039642,-4275.9,0.00011435,2]
[399427244,1766343039652,-999.0,0.00011525,3]
[399427245,1766343039663,-273.3706436,0.00011813,2]
[399427246,1766343039673,-2351.0,0.0001183,2]
[399427247,1766343039683,-433.0,0.00011951,2]
[399427248,1766343039694,-1600.0,0.00012022,2]
[399427249,1766343039703,-164.88,0.00012031,2]
[399427250,1766343039712,-25945.72934006,0.00012152,2]
[399427251,1766343039722,-38082.51200145,0.00012152,2]
[399427252,1766343039731,-500.0,0.00012285,2]
[399427253,1766343039742,-7011.91,0.00012398,2]
[399427254,1766343039753,-1000.0,0.00012563,2]
[399427255,1766343039763,-5692.5,0.00012719,2]
[399427256,1766343039772,-538.6234932,0.00012747,2]
[399427257,1766343039781,-273.3706436,0.0001283,2]
[399427258,1766343039790,-250.0,0.0001292,2]
[399427259,1766343039799,-25945.72934006,0.00012943,2]
[399427260,1766343039808,-38082.51200145,0.00012943,2]
[399427261,1766343039818,-3292.0,0.00013013,2]
[399427262,1766343039828,-736.0,0.00013146,2]
[399427263,1766343039837,-166.66,0.00013335,2]
[399427264,1766343039847,-154.09,0.00013354,2]
[399427265,1766343039857,-219.79,0.00013354,2]
[399427266,1766343039867,-1600.0,0.00013525,2]
[399427267,1766343039877,-638.30499273,0.00013643,2]
[399427268,1766343039886,-500.0,0.00013643,2]
[399427269,1766343039896,-500.0,0.00013643,2]
[399427270,1766343039906,-500.0,0.00013643,2]
[399427271,1766343039916,-500.0,0.00013643,2]
[399427272,1766343039927,-500.0,0.00013698,2]
[399427273,1766343039937,-500.0,0.00013698,2]
[399427274,1766343039946,-500.0,0.00013698,2]
[399427275,1766343039956,-500.0,0.00013698,2]
[399427276,1766343039973,-500.0,0.00013698,2]
[399427277,1766343039983,-500.0,0.00013698,2]
[399427278,1766343039993,-500.0,0.00013698,2]
[399427279,1766343040002,-500.0,0.00013698,2]
[399427280,1766343040012,-500.0,0.00013698,2]
[399427281,1766343040021,-500.0,0.00013698,2]
[399427282,1766343040031,-500.0,0.00013698,2]
[399427283,1766343040041,-500.0,0.00013698,2]
[399427284,1766343040050,-500.0,0.00013698,2]
[399427285,1766343040059,-500.0,0.00013698,2]
[399427286,1766343040069,-500.0,0.00013698,2]
[399427287,1766343040078,-500.0,0.00013698,2]
[399427288,1766343040088,-500.0,0.00013698,2]
[399427289,1766343040097,-500.0,0.00013698,2]
[399427290,1766343040107,-500.0,0.00013698,2]
[399427291,1766343040117,-15361.17,0.00013699,2]
[399427292,1766343040128,-1000.0,0.00013699,2]
[399427293,1766343040137,-451.96,0.00013699,2]
[399427294,1766343040147,-500.0,0.00013699,2]
[399427295,1766343040156,-500.0,0.00013699,2]
[399427296,1766343040166,-500.0,0.00013699,2]
[399427297,1766343040175,-500.0,0.00013699,2]
[399427298,1766343040184,-500.0,0.00013699,2]
[399427299,1766343040193,-500.0,0.00013699,2]
[399427300,1766343040203,-500.0,0.00013699,2]
[399427301,1766343040213,-500.0,0.00013699,2]
[399427302,1766343040222,-500.0,0.00013699,2]
[399427303,1766343040232,-178.54260919,0.00013699,2]
[399427304,1766343040241,-500.0,0.00013699,2]
[399427305,1766343040250,-500.0,0.00013699,2]
[399427307,1766343040259,-500.0,0.00013699,2]
[399427308,1766343040268,-151.0,0.00013732,2]
[399427309,1766343040278,-25945.72934006,0.00013735,2]
[399427310,1766343040287,-38082.51200145,0.00013735,2]
[399427311,1766343040296,-166.66,0.00013775,2]
[399427312,1766343040306,-500.0,0.00013779,2]
[399427313,1766343040315,-273.3706436,0.00013848,2]
[399427314,1766343040324,-1000.0,0.00013959,2]
[399427315,1766343040333,-451.96,0.00013973,2]
[399427316,1766343040342,-300.0,0.00014029,2]
[399427317,1766343040351,-200.0,0.00014029,2]
[399427318,1766343040361,-207.4,0.00014029,2]
[399427319,1766343040370,-215.0738,0.00014029,2]
[399427320,1766343040380,-223.0315306,0.00014029,2]
[399427321,1766343040389,-231.28369723,0.00014029,2]
[399427322,1766343040398,-239.84119403,0.00014029,2]
[399427323,1766343040407,-248.71531821,0.00014029,2]
[399427324,1766343040416,-257.91778498,0.00014029,2]
[399427325,1766343040425,-267.46074303,0.00014029,2]
[399427326,1766343040435,-538.6234932,0.00014181,2]
[399427327,1766343040444,-1000.0,0.00014191,2]
[399427328,1766343040453,-1000.0,0.00014191,2]
[399427329,1766343040463,-1000.0,0.00014191,2]
[399427330,1766343040472,-1000.0,0.00014191,2]
[399427331,1766343040482,-166.66,0.00014216,2]
[399427332,1766343040493,-451.96,0.00014247,2]
[399427333,1766343040503,-4609.0,0.00014315,2]
[399427334,1766343040512,-19975.44,0.00014457,2]
[399427335,1766343040522,-3289.12262717,0.0001451,2]
[399427336,1766343040532,-451.96,0.00014521,2]
[399427337,1766343040541,-25945.72934006,0.00014526,2]
[399427338,1766343040550,-38082.51200145,0.00014526,2]
[399427339,1766343040559,-166.66,0.00014656,2]
[399427340,1766343040568,-851.34245587,0.00014739,2]
[399427341,1766343040579,-1500.0,0.00014739,2]
[399427342,1766343040588,-1500.0,0.00014739,2]
[399427343,1766343040598,-1454.77156402,0.00014739,2]
[399427344,1766343040609,-452.0,0.00014795,2]
[399427345,1766343040618,-273.3706436,0.00014865,2]
[399427346,1766343040628,-500.0,0.00014986,2]
[399427347,1766343040638,-1600.0,0.00015028,2]
[399427348,1766343040647,-164.88,0.00015039,2]
[399427349,1766343040655,-553.63,0.00015068,2]
[399427350,1766343040664,-166.66,0.00015096,2]
[399427351,1766343040673,-500.0,0.0001513,2]
[399427352,1766343040682,-818.61095997,0.00015239,2]
[399427353,1766343040692,-2000.0,0.00015287,2]
[399427354,1766343040702,-1577.26528562,0.00015287,2]
[399427355,1766343040713,-25945.72934006,0.00015317,2]
[399427356,1766343040722,-1072.86939344,0.00015317,2]
[399427357,1766343041193,-629.8630819,0.00015317,2]
[399427358,1766343041205,-36379.77952611,0.00015317,2]
[399427359,1766343041214,-500.0,0.00015339,2]
[399427360,1766343041223,-1000.0,0.00015355,2]
[399427361,1766343041232,-311.1,0.00015398,2]
[399427362,1766343041241,-277.35679052,0.00015398,2]
[399427363,1766343041250,-166.66,0.00015536,2]
[399427364,1766343041259,-1938.0,0.00015746,2]
[399427365,1766343041268,-2500.0,0.00015835,2]
[399427366,1766343041278,-273.3706436,0.00015883,2]
[399427367,1766343041287,-4275.9,0.00016009,2]
[399427368,1766343041304,-818.61095996,0.0001607,2]
[399427369,1766343041316,-25945.72934006,0.00016109,2]
[399427370,1766343041325,-16732.84400413,0.00016109,2]
[399427371,1766343041369,500.0,9.777e-05,2]
[399427372,1766343041439,500.0,9.777e-05,2]
[399427373,1766343041469,-302.64238328,0.00013699,2]
[399427374,1766343041480,-197.35761672,0.00013699,2]
[399427375,1766343041489,-500.0,0.00013699,2]
[399427376,1766343041498,-286.68238128,0.00013699,2]
[399427377,1766343041510,-213.31761872,0.00013699,2]
[399427378,1766343041519,-176.11846128,0.00016109,2]
[399427379,1766343041564,302.4043559,9.777e-05,2]
[399427380,1766343041593,197.5956441,9.777e-05,2]
[399427383,1766343041911,500.0,9.777e-05,2]
[399427384,1766343041942,-500.0,0.00013699,2]
[399427385,1766343041952,-500.0,0.00013699,2]
[399427386,1766343041962,-1560.5904227,0.00016109,2]
[399427387,1766343042026,500.0,9.777e-05,2]
[399427388,1766343042090,500.0,9.777e-05,2]
[399427389,1766343042103,-500.0,0.00013699,2]
[399427390,1766343042112,-500.0,0.00013699,2]
[399427391,1766343042122,-7737.5340243,0.00016109,2]
[399427392,1766343042180,500.0,9.777e-05,2]
[399427393,1766343042240,500.0,9.777e-05,2]
[399427394,1766343042299,500.0,9.777e-05,2]
[399427395,1766343042348,500.0,9.777e-05,2]
[399427396,1766343042798,-311.86559939,9.804e-05,2]
[399427397,1766343042812,-294.70440799,9.804e-05,2]
[399427410,1766343045008,-345.5261616,9.804e-05,2]
[399427411,1766343045021,-604.792551,9.804e-05,2]
[399427412,1766343045033,-331.8895825,9.804e-05,2]
[399427413,1766343046273,-386805.00402532,9.804e-05,2]
[399427414,1766343046283,-22274.15453485,0.00011138,2]
[399427415,1766343046327,-92379.64019877,0.00011138,2]
[399427416,1766343046339,-1720.0,0.00011138,2]
[399427417,1766343046489,-17003.70028845,0.00011138,2]
[399427422,1766343077435,-500.0,9.678e-05,2]
[399427424,1766343080111,9000.01,9.678e-05,2]
[399427425,1766343080136,10000.01,9.678e-05,2]
[399427429,1766343092258,-591.60669313,9.678e-05,2]
[399427430,1766343094753,-374.65291848,9.678e-05,2]
[399427431,1766343097441,470.4,0.00035616,38]
[399427432,1766343098066,-193.0,9.678e-05,2]
[399427433,1766343099649,-228.32095433,9.678e-05,2]
[399427434,1766343102144,-223.72268754,9.678e-05,2]
[399427435,1766343105241,-168.80583206,9.678e-05,2]
[399427436,1766343110724,-191.95324736,9.678e-05,2]
[399427447,1766343113993,-549.20383862,9.678e-05,2]
[399427448,1766343117293,-203.9016105,9.678e-05,2]
[399427449,1766343119407,-201.49824492,9.678e-05,2]
[399427450,1766343122104,-198.39875669,9.677e-05,2]
[399427451,1766343123528,-101.60124331,9.677e-05,2]
[399427452,1766343123551,-93.39875669,9.678e-05,2]
[399427453,1766343125604,-204.68356506,9.678e-05,2]
[399427454,1766343125782,500.0,0.00035616,30]
[399427455,1766343126383,500.0,0.00035616,30]
[399427456,1766343127510,500.0,0.00035616,30]
[399427457,1766343127549,500.0,0.00035616,30]